fUST/lending_fUST_20250627
["ID","MTS","AMOUNT","RATE_DAILY","PERIOD"]
[368097449,1751023847209,-500.0,0.00020088,2]
[368097451,1751023847218,-500.0,0.00020088,2]
[368097453,1751023847228,-4290.37088558,0.00020088,2]
[368097455,1751023847237,-500.0,0.00020088,2]
[368097457,1751023847246,-500.0,0.00020088,2]
[368097459,1751023847256,-500.0,0.00020088,2]
[368097461,1751023847266,-500.0,0.00020088,2]
[368097463,1751023847275,-500.0,0.00020088,2]
[368097465,1751023847284,-500.0,0.00020088,2]
[368097467,1751023847293,-500.0,0.00020088,2]
[368097469,1751023847302,-500.0,0.00020088,2]
[368097471,1751023847311,-500.0,0.00020088,2]
[368097473,1751023847320,-151.0,0.00020088,2]
[368097475,1751023847329,-500.0,0.00020088,2]
[368097477,1751023847338,-151.0,0.00020088,2]
[368097479,1751023847347,-151.0,0.00020088,2]
[368097481,1751023847357,-666.0,0.00020088,2]
[368097483,1751023847366,-500.0,0.00020088,2]
[368097485,1751023847375,-151.0,0.00020088,2]
[368097487,1751023847383,-500.0,0.00020088,2]
[368097489,1751023847393,-500.0,0.00020088,2]
[368097491,1751023847402,-151.0,0.00020088,2]
[368097493,1751023847414,-500.0,0.00020088,2]
[368097495,1751023847423,-151.0,0.00020088,2]
[368097497,1751023847432,-500.0,0.00020088,2]
[368097499,1751023847441,-151.0,0.00020088,2]
[368097501,1751023847450,-500.0,0.00020088,2]
[368097503,1751023847459,-500.0,0.00020088,2]
[368097505,1751023847468,-151.0,0.00020088,2]
[368097507,1751023847477,-500.0,0.00020088,2]
[368097509,1751023847486,-500.0,0.00020088,2]
[368097511,1751023847495,-151.0,0.00020088,2]
[368097513,1751023847504,-500.0,0.00020088,2]
[368097514,1751023847513,-500.0,0.00020088,2]
[368097516,1751023847522,-151.0,0.00020088,2]
[368097519,1751023847532,-151.0,0.00020088,2]
[368097521,1751023847542,-500.0,0.00020088,2]
[368097523,1751023847552,-151.0,0.00020088,2]
[368097525,1751023847561,-227.54651037,0.00020088,2]
[368097527,1751023847570,-500.0,0.00020088,2]
[368097529,1751023847579,-500.0,0.00020088,2]
[368097531,1751023847588,-151.0,0.00020088,2]
[368097532,1751023847597,-500.0,0.00020088,2]
[368097535,1751023847607,-500.0,0.00020088,2]
[368097536,1751023847616,-151.0,0.00020088,2]
[368097538,1751023847625,-500.0,0.00020088,2]
[368097540,1751023847634,-151.0,0.00020088,2]
[368097542,1751023847644,-500.0,0.00020088,2]
[368097544,1751023847653,-500.0,0.00020088,2]
[368097546,1751023847663,-500.0,0.00020088,2]
[368097548,1751023847672,-246.62150823,0.00020088,2]
[368097550,1751023847682,-500.0,0.00020088,2]
[368097553,1751023847693,-500.0,0.00020088,2]
[368097555,1751023847703,-151.0,0.00020088,2]
[368097556,1751023847711,-151.0,0.00020088,2]
[368097558,1751023847720,-151.0,0.00020088,2]
[368097560,1751023847730,-151.0,0.00020088,2]
[368097562,1751023847739,-288.89272804,0.00020088,2]
[368097564,1751023847747,-151.0,0.000201,4]
[368097566,1751023847757,-690.642,0.00020143,2]
[368097568,1751023847766,-2488.99577689,0.00020174,2]
[368097570,1751023847775,-716.195754,0.00020198,2]
[368097572,1751023847784,-1000.0,0.00020219,2]
[368097574,1751023847793,-1000.0,0.00020219,2]
[368097576,1751023847803,-500.0,0.00020219,2]
[368097578,1751023847812,-501.50572642,0.00020219,2]
[368097580,1751023847821,-1000.0,0.00020224,2]
[368097582,1751023847831,-501.09377109,0.00020235,2]
[368097584,1751023847840,-1000.0,0.00020235,2]
[368097586,1751023847849,-617.83311831,0.00020235,2]
[368097588,1751023847858,-1000.0,0.00020235,2]
[368097590,1751023847867,-1000.0,0.00020235,2]
[368097592,1751023847876,-1000.0,0.00020235,2]
[368097594,1751023847885,-1003.72718248,0.00020235,2]
[368097596,1751023847895,-1000.0,0.00020235,2]
[368097598,1751023847903,-1006.63485112,0.00020235,2]
[368097600,1751023847912,-1000.0,0.00020235,2]
[368097614,1751023848030,-1000.0,0.00020235,2]
[368097616,1751023848040,-742.6949969,0.00020253,2]
[368097618,1751023848050,-500.0,0.00020254,2]
[368097620,1751023848059,-1000.0,0.00020264,2]
[368097622,1751023848068,-1000.0,0.00020264,2]
[368097624,1751023848077,-310258.44884,0.0002027,2]
[368097626,1751023848087,-495.1163932,0.00020271,2]
[368097628,1751023848096,-474.67,0.00020273,2]
[368097630,1751023848105,-460.0,0.00020273,2]
[368097632,1751023848115,-670.1,0.00020273,2]
[368097634,1751023848124,-460.0,0.00020273,2]
[368097636,1751023848133,-460.0,0.00020273,2]
[368097638,1751023848142,-592.45743595,0.00020273,2]
[368097640,1751023848151,-460.0,0.00020273,2]
[368097642,1751023848160,-460.0,0.00020273,2]
[368097644,1751023848169,-460.0,0.00020273,2]
[368097646,1751023848178,-460.0,0.00020273,2]
[368097648,1751023848188,-460.0,0.00020273,2]
[368097650,1751023848197,-861.02,0.00020273,2]
[368097652,1751023848207,-460.0,0.00020273,2]
[368097654,1751023848216,-4378.2,0.00020273,2]
[368097656,1751023848226,-460.92,0.00020273,2]
[368097658,1751023848235,-460.0,0.00020273,2]
[368097660,1751023848245,-628.72,0.00020273,2]
[368097662,1751023848254,-321.41932496,0.00020273,2]
[368097664,1751023848263,-509.88,0.00020273,2]
[368097666,1751023848273,-460.0,0.00020273,2]
[368097668,1751023848282,-460.0,0.00020273,2]
[368097670,1751023848291,-460.0,0.00020273,2]
[368097672,1751023848301,-682.73,0.00020273,2]
[368097674,1751023848311,-460.0,0.00020273,2]
[368097676,1751023848320,-1390.09,0.00020273,2]
[368097678,1751023848329,-460.0,0.00020273,2]
[368097680,1751023848339,-974.36,0.00020273,2]
[368097682,1751023848348,-764.98,0.00020273,2]
[368097684,1751023848358,-3896.23,0.00020273,2]
[368097686,1751023848367,-2635.04,0.00020273,2]
[368097688,1751023848376,-460.0,0.00020273,2]
[368097690,1751023848386,-460.0,0.00020273,2]
[368097692,1751023848395,-460.0,0.00020273,2]
[368097694,1751023848404,-598.58,0.00020273,2]
[368097696,1751023848413,-157.66197217,0.00020273,2]
[368097698,1751023848422,-460.0,0.00020273,2]
[368097700,1751023848432,-6283.42,0.00020273,2]
[368097702,1751023848442,-1715.36,0.00020273,2]
[368097704,1751023848451,-460.0,0.00020273,2]
[368097706,1751023848460,-460.0,0.00020273,2]
[368097708,1751023848470,-2268.92,0.00020273,2]
[368097710,1751023848479,-2719.84,0.00020273,2]
[368097712,1751023848489,-413.07799668,0.00020273,2]
[368097714,1751023848498,-460.0,0.00020273,2]
[368097716,1751023848507,-1042.16,0.00020273,2]
[368097718,1751023848516,-460.0,0.00020273,2]
[368097720,1751023848526,-460.0,0.00020273,2]
[368097722,1751023848535,-460.0,0.00020273,2]
[368097724,1751023848545,-460.0,0.00020273,2]
[368097726,1751023848554,-538.2,0.00020273,2]
[368097728,1751023848564,-460.0,0.00020273,2]
[368097729,1751023848573,-460.0,0.00020273,2]
[368097730,1751023848582,-460.0,0.00020273,2]
[368097731,1751023848591,-791.9,0.00020273,2]
[368097732,1751023848601,-460.0,0.00020273,2]
[368097733,1751023848610,-1225.8,0.00020273,2]
[368097734,1751023848619,-622.14,0.00020273,2]
[368097735,1751023848629,-460.0,0.00020273,2]
[368097736,1751023848638,-663.0,0.00020273,2]
[368097737,1751023848647,-2244.93,0.00020273,2]
[368097738,1751023848657,-460.0,0.00020273,2]
[368097739,1751023848666,-460.0,0.00020273,2]
[368097740,1751023848675,-1865.66,0.00020273,2]
[368097742,1751023848684,-460.0,0.00020273,2]
[368097743,1751023848693,-460.0,0.00020273,2]
[368097745,1751023848703,-1265.65,0.00020273,2]
[368097747,1751023848712,-590.36,0.00020273,2]
[368097750,1751023848723,-471.16412517,0.00020273,2]
[368097752,1751023848733,-976.49,0.00020273,2]
[368097753,1751023848742,-5535.19,0.00020273,2]
[368097755,1751023848751,-760.24,0.00020273,2]
[368097757,1751023848760,-2040.26,0.00020273,2]
[368097760,1751023848770,-3800.83,0.00020273,2]
[368097762,1751023848780,-753.43,0.00020273,2]
[368097764,1751023848789,-259.68,0.00020273,2]
[368097766,1751023848798,-460.0,0.00020273,2]
[368097768,1751023848809,-504.32,0.00020273,2]
[368097769,1751023848819,-1510.27,0.00020273,2]
[368097772,1751023848829,-460.0,0.00020273,2]
[368097774,1751023848838,-362.67507368,0.00020282,2]
[368097776,1751023848847,-151.0,0.000203,4]
[368097778,1751023848857,-770.17471178,0.00020308,2]
[368097780,1751023848867,-798.67117612,0.00020363,2]
[368097782,1751023848876,-177.66,0.00020373,2]
[368097784,1751023848886,-62742.47161585,0.000204,2]
[368097804,1751023849070,-2360.79643471,0.000204,2]
[368097840,1751023849405,-460.0,0.00019178,2]
[368097842,1751023849414,-33.28256153,0.00020273,2]
[368097844,1751023849426,-298.23569615,0.00020273,2]
[368097850,1751023849522,-460.0,0.00019452,2]
[368097851,1751023849531,-389.07174232,0.00020273,2]
[368097853,1751023849540,-17694.41807205,0.000204,2]
[368097855,1751023849552,-4521.22046339,0.000204,2]
[368097856,1751023849568,-11769.26236343,0.000204,2]
[368097858,1751023849579,-151.0,0.000204,4]
[368097860,1751023849588,-828.22200964,0.00020418,2]
[368097861,1751023849598,-858.86622399,0.00020473,2]
[368097863,1751023849608,-890.64427428,0.00020528,2]
[368097864,1751023849617,-460.0,0.00020547,2]
[368097866,1751023849627,-670.1,0.00020547,2]
[368097868,1751023849637,-460.0,0.00020547,2]
[368097869,1751023849648,-460.0,0.00020547,2]
[368097871,1751023849657,-460.0,0.00020547,2]
[368097872,1751023849667,-426.39,0.00020547,2]
[368097874,1751023849675,-460.0,0.00020547,2]
[368097875,1751023849685,-460.0,0.00020547,2]
[368097877,1751023849694,-460.0,0.00020547,2]
[368097879,1751023849703,-861.02,0.00020547,2]
[368097880,1751023849712,-460.0,0.00020547,2]
[368097882,1751023849721,-4378.2,0.00020547,2]
[368097883,1751023849731,-460.0,0.00020547,2]
[368097885,1751023849740,-628.72,0.00020547,2]
[368097887,1751023849749,-509.88,0.00020547,2]
[368097888,1751023849759,-460.0,0.00020547,2]
[368097890,1751023849768,-460.0,0.00020547,2]
[368097891,1751023849777,-460.0,0.00020547,2]
[368097893,1751023849786,-682.73,0.00020547,2]
[368097895,1751023849795,-460.0,0.00020547,2]
[368097896,1751023849805,-1390.09,0.00020547,2]
[368097898,1751023849814,-460.0,0.00020547,2]
[368097900,1751023849823,-974.36,0.00020547,2]
[368097901,1751023849832,-764.98,0.00020547,2]
[368097903,1751023849842,-3896.23,0.00020547,2]
[368097905,1751023849852,-2635.04,0.00020547,2]
[368097906,1751023849861,-460.0,0.00020547,2]
[368097908,1751023849871,-460.0,0.00020547,2]
[368097910,1751023849880,-598.58,0.00020547,2]
[368097911,1751023849890,-460.0,0.00020547,2]
[368097913,1751023849902,-326.56597645,0.00020547,2]
[368097915,1751023849912,-6283.42,0.00020547,2]
[368097916,1751023849922,-1715.36,0.00020547,2]
[368097917,1751023849930,-460.0,0.00020547,2]
[368097918,1751023849940,-460.0,0.00020547,2]
[368097920,1751023849950,-2268.92,0.00020547,2]
[368097921,1751023849960,-154.393851,0.00020547,2]
[368097923,1751023849974,-2719.84,0.00020547,2]
[368097924,1751023849984,-429.99967855,0.00020547,2]
[368097926,1751023849993,-1042.16,0.00020547,2]
[368097927,1751023850003,-460.0,0.00020547,2]
[368097929,1751023850013,-460.0,0.00020547,2]
[368097930,1751023850022,-460.0,0.00020547,2]
[368097932,1751023850032,-538.2,0.00020547,2]
[368097933,1751023850041,-460.0,0.00020547,2]
[368097935,1751023850050,-460.0,0.00020547,2]
[368097936,1751023850059,-460.0,0.00020547,2]
[368097938,1751023850069,-791.9,0.00020547,2]
[368097939,1751023850078,-460.0,0.00020547,2]
[368097941,1751023850087,-1225.8,0.00020547,2]
[368097942,1751023850097,-622.14,0.00020547,2]
[368097944,1751023850106,-460.0,0.00020547,2]
[368097946,1751023850115,-151.0,0.00020547,2]
[368097947,1751023850124,-663.0,0.00020547,2]
[368097949,1751023850134,-2244.93,0.00020547,2]
[368097950,1751023850142,-460.0,0.00020547,2]
[368097952,1751023850152,-598.06,0.00020547,2]
[368097954,1751023850161,-1865.66,0.00020547,2]
[368097955,1751023850172,-151.0,0.00020547,2]
[368097957,1751023850183,-460.0,0.00020547,2]
[368097958,1751023850192,-460.0,0.00020547,2]
[368097960,1751023850201,-1265.65,0.00020547,2]
[368097962,1751023850211,-590.36,0.00020547,2]
[368097963,1751023850221,-976.49,0.00020547,2]
[368097965,1751023850232,-5535.19,0.00020547,2]
[368097966,1751023850241,-760.24,0.00020547,2]
[368097968,1751023850250,-2040.26,0.00020547,2]
[368097969,1751023850259,-151.0,0.00020547,2]
[368097971,1751023850269,-151.0,0.00020547,2]
[368097973,1751023850280,-3800.83,0.00020547,2]
[368097982,1751023850401,-753.43,0.00020547,2]
[368097983,1751023850411,-460.0,0.00020547,2]
[368097985,1751023850421,-504.32,0.00020547,2]
[368097987,1751023850431,-1510.27,0.00020547,2]
[368097988,1751023850441,-348.70614134,0.00020547,2]
[368097990,1751023850450,-720.59,0.00020547,2]
[368097992,1751023850462,-923.59811243,0.00020583,2]
[368097994,1751023850471,-2488.99577689,0.00020584,2]
[368097995,1751023850481,-4196.1,0.000206,2]
[368097997,1751023850490,-151.0,0.000206,4]
[368097998,1751023850499,-25000.0,0.00020636,2]
[368098000,1751023850509,-5000.0,0.00020636,2]
[368098002,1751023850518,-957.77124259,0.00020638,2]
[368098003,1751023850528,-993.20877856,0.00020693,2]
[368098005,1751023850537,-166.0,0.000207,2]
[368098007,1751023850547,-317.0,0.000207,2]
[368098008,1751023850556,-317.0,0.000207,2]
[368098010,1751023850566,-317.0,0.000207,2]
[368098011,1751023850576,-317.0,0.000207,2]
[368098013,1751023850585,-317.0,0.000207,2]
[368098015,1751023850595,-317.0,0.000207,2]
[368098016,1751023850604,-317.0,0.000207,2]
[368098018,1751023850614,-322.16566255,0.000207,2]
[368098020,1751023850624,-166.0,0.000207,2]
[368098021,1751023850635,-166.0,0.000207,2]
[368098023,1751023850645,-166.0,0.000207,2]
[368098025,1751023850655,-166.0,0.000207,2]
[368098027,1751023850665,-166.0,0.000207,2]
[368098028,1751023850676,-166.0,0.000207,2]
[368098029,1751023850686,-166.0,0.000207,2]
[368098030,1751023850695,-172.0,0.000207,2]
[368098031,1751023850704,-970.0,0.00020707,2]
[368098032,1751023850714,-1029.95750337,0.00020748,2]
[368098033,1751023850723,-1500.0,0.00020767,2]
[368098034,1751023850733,-1500.0,0.00020772,2]
[368098035,1751023850742,-395.67986745,0.00020783,2]
[368098036,1751023850752,-500.0,0.00020783,2]
[368098037,1751023850761,-561.98398793,0.00020783,2]
[368098038,1751023850770,-1500.0,0.00020783,2]
[368098039,1751023850779,-500.0,0.00020783,2]
[368098040,1751023850788,-970.0,0.00020803,2]
[368098041,1751023850798,-1068.065931,0.00020803,2]
[368098042,1751023850807,-929.3994959,0.00020812,2]
[368098043,1751023850816,-460.0,0.00020821,2]
[368098044,1751023850825,-670.1,0.00020821,2]
[368098045,1751023850834,-460.0,0.00020821,2]
[368098046,1751023850843,-460.0,0.00020821,2]
[368098048,1751023850852,-475.24,0.00020821,2]
[368098049,1751023850861,-460.0,0.00020821,2]
[368098050,1751023850870,-460.0,0.00020821,2]
[368098052,1751023850879,-861.02,0.00020821,2]
[368098054,1751023850888,-460.0,0.00020821,2]
[368098056,1751023850897,-4378.2,0.00020821,2]
[368098058,1751023850907,-460.0,0.00020821,2]
[368098060,1751023850917,-628.72,0.00020821,2]
[368098062,1751023850926,-509.88,0.00020821,2]
[368098064,1751023850935,-460.0,0.00020821,2]
[368098066,1751023850944,-460.0,0.00020821,2]
[368098068,1751023850953,-682.73,0.00020821,2]
[368098070,1751023850963,-179.14062139,0.00020821,2]
[368098072,1751023850974,-1390.09,0.00020821,2]
[368098074,1751023850983,-460.0,0.00020821,2]
[368098076,1751023850993,-974.36,0.00020821,2]
[368098078,1751023851002,-764.98,0.00020821,2]
[368098080,1751023851012,-3896.23,0.00020821,2]
[368098082,1751023851021,-2635.04,0.00020821,2]
[368098084,1751023851030,-460.0,0.00020821,2]
[368098086,1751023851040,-242.364979,0.00020821,2]
[368098088,1751023851049,-460.0,0.00020821,2]
[368098090,1751023851059,-598.58,0.00020821,2]
[368098092,1751023851068,-460.0,0.00020821,2]
[368098094,1751023851077,-151.0,0.00020821,2]
[368098096,1751023851086,-6283.42,0.00020821,2]
[368098098,1751023851095,-1715.36,0.00020821,2]
[368098100,1751023851104,-460.0,0.00020821,2]
[368098102,1751023851113,-460.0,0.00020821,2]
[368098104,1751023851123,-2268.92,0.00020821,2]
[368098106,1751023851131,-2719.84,0.00020821,2]
[368098108,1751023851141,-1042.16,0.00020821,2]
[368098110,1751023851150,-460.0,0.00020821,2]
[368098112,1751023851159,-460.0,0.00020821,2]
[368098113,1751023851168,-460.0,0.00020821,2]
[368098115,1751023851177,-538.2,0.00020821,2]
[368098117,1751023851187,-460.0,0.00020821,2]
[368098119,1751023851195,-343.53815493,0.00020821,2]
[368098121,1751023851204,-258.82356254,0.00020821,2]
[368098123,1751023851213,-791.9,0.00020821,2]
[368098125,1751023851222,-460.0,0.00020821,2]
[368098128,1751023851233,-1225.8,0.00020821,2]
[368098129,1751023851242,-622.14,0.00020821,2]
[368098131,1751023851251,-663.0,0.00020821,2]
[368098133,1751023851260,-2244.93,0.00020821,2]
[368098135,1751023851269,-460.0,0.00020821,2]
[368098137,1751023851278,-1865.66,0.00020821,2]
[368098139,1751023851287,-460.0,0.00020821,2]
[368098141,1751023851297,-246.153851,0.00020821,2]
[368098143,1751023851306,-246.153851,0.00020821,2]
[368098145,1751023851315,-460.0,0.00020821,2]
[368098147,1751023851325,-1265.65,0.00020821,2]
[368098149,1751023851334,-590.36,0.00020821,2]
[368098151,1751023851343,-976.49,0.00020821,2]
[368098153,1751023851352,-5535.19,0.00020821,2]
[368098155,1751023851361,-760.24,0.00020821,2]
[368098157,1751023851371,-2040.26,0.00020821,2]
[368098159,1751023851380,-3800.83,0.00020821,2]
[368098161,1751023851390,-753.43,0.00020821,2]
[368098163,1751023851399,-460.0,0.00020821,2]
[368098165,1751023851409,-504.32,0.00020821,2]
[368098167,1751023851418,-1510.27,0.00020821,2]
[368098169,1751023851427,-720.59,0.00020821,2]
[368098171,1751023851437,-989.999,0.0002083,2]
[368098173,1751023851446,-177.859,0.0002083,2]
[368098175,1751023851455,-970.0,0.00020835,2]
[368098178,1751023851464,-1107.58437044,0.00020858,2]
[368098179,1751023851474,-420.0,0.00020897,2]
[368098181,1751023851484,-151.0,0.000209,3]
[368098184,1751023851493,-151.0,0.000209,3]
[368098185,1751023851503,-7791.91358627,0.000209,4]
[368098188,1751023851512,-1148.56499215,0.00020913,2]
[368098190,1751023851522,-2038.0,0.00020933,2]
[368098191,1751023851531,-2380.53134937,0.00020982,2]
[368098194,1751023851545,-776.46865063,0.00020982,2]
[368098196,1751023851555,-299.01999632,0.00020995,2]
[368098198,1751023851566,-2189.97578057,0.00020995,2]
[368098200,1751023851575,-408.0,0.00020999,2]
[368098202,1751023851584,-17935.51692571,0.00021,2]
[368098213,1751023851679,-169.717955,0.00020821,2]
[368098215,1751023851688,-5140.1986323,0.00021,2]
[368098218,1751023851702,-6406.90639273,0.00021,2]
[368098220,1751023851711,-500.0,0.00021,2]
[368098222,1751023851720,-2673.87906123,0.00021,2]
[368098224,1751023851729,-2699.51400004,0.00021,2]
[368098226,1751023851740,-313.326558,0.00021,2]
[368098228,1751023851751,-3064.37300893,0.00021,2]
[368098230,1751023851762,-392.19069161,0.00021,2]
[368098232,1751023851773,-463.50206056,0.00021,2]
[368098234,1751023851782,-359.8160208,0.00021049,2]
[368098236,1751023851791,-630.38501879,0.00021049,2]
[368098246,1751023851873,-524.16946121,0.00021049,2]
[368098248,1751023851882,-153.0,0.00021067,2]
[368098250,1751023851891,-306.0,0.00021067,2]
[368098252,1751023851900,-971.428763,0.00021069,4]
[368098254,1751023851909,-155.943861,0.0002107,3]
[368098256,1751023851920,-153.304182,0.00021072,2]
[368098258,1751023851929,-151.0,0.00021072,2]
[368098260,1751023851938,-151.0,0.00021072,2]
[368098262,1751023851947,-152.978096,0.00021072,2]
[368098264,1751023851955,-152.978096,0.00021072,2]
[368098266,1751023851967,-151.0,0.00021072,2]
[368098268,1751023851977,-151.0,0.00021072,2]
[368098270,1751023851986,-151.0,0.00021072,2]
[368098272,1751023851995,-151.0,0.00021072,2]
[368098274,1751023852004,-151.0,0.00021072,2]
[368098276,1751023852013,-151.0,0.00021072,2]
[368098278,1751023852022,-1085.51413909,0.00021072,4]
[368100748,1751023877732,3364.48892838,0.000191,2]
[368105837,1751023953063,388.0546018,0.00018644,2]
[368105838,1751023989558,202.786007,0.0001852,2]
[368105839,1751024008470,812.46673008,0.000189,2]
[368105840,1751024009706,541.64448672,0.000189,2]
[368105841,1751024019412,717.36849357,0.00019078,2]
[368105842,1751024029495,5000.0,0.000191,2]
[368105850,1751024213973,162.890751,0.00013699,2]
[368105851,1751024309753,361.09632448,0.000189,2]
[368105852,1751024311207,240.73088299,0.000189,2]
[368105864,1751024341727,24900.0,0.00018486,2]
[368105865,1751024350513,-243.52055539,0.0001911,2]
[368105866,1751024350535,-1200.0,0.00019177,2]
[368105867,1751024350559,-300.0,0.00019177,2]
[368105868,1751024350583,-214.31673833,0.00019177,2]
[368105869,1751024350606,-512.01165379,0.00019178,2]
[368105870,1751024350627,-460.0,0.00019178,2]
[368105871,1751024350649,-460.0,0.00019178,2]
[368105872,1751024350671,-460.0,0.00019178,2]
[368105873,1751024350691,-460.0,0.00019178,2]
[368105874,1751024350713,-460.0,0.00019178,2]
[368105875,1751024350733,-460.0,0.00019178,2]
[368105876,1751024350754,-460.0,0.00019178,2]
[368105877,1751024350774,-500.30953371,0.00019178,2]
[368105878,1751024350795,-460.0,0.00019178,2]
[368105879,1751024350815,-460.0,0.00019178,2]
[368105880,1751024350836,-724.23,0.00019178,2]
[368105881,1751024350861,-460.0,0.00019178,2]
[368105882,1751024350882,-460.0,0.00019178,2]
[368105883,1751024350903,-460.0,0.00019178,2]
[368105884,1751024350924,-460.0,0.00019178,2]
[368105885,1751024350945,-460.0,0.00019178,2]
[368105886,1751024350965,-460.0,0.00019178,2]
[368105887,1751024350986,-430.92504101,0.00019178,2]
[368105888,1751024351006,-300.0,0.00019178,2]
[368105889,1751024351028,-460.0,0.00019178,2]
[368105890,1751024351049,-460.0,0.00019178,2]
[368105891,1751024351068,-460.0,0.00019178,2]
[368105892,1751024351089,-460.0,0.00019178,2]
[368105893,1751024351110,-460.0,0.00019178,2]
[368105894,1751024351278,-548.44,0.00019178,2]
[368105895,1751024351301,-1114.97,0.00019178,2]
[368105896,1751024351324,-877.74,0.00019178,2]
[368105897,1751024351345,-460.0,0.00019178,2]
[368105898,1751024351365,-651.47,0.00019178,2]
[368105899,1751024351387,-1569.87,0.00019178,2]
[368105900,1751024351410,-469.07939754,0.00019178,2]
[368105901,1751024351432,-460.0,0.00019178,2]
[368105902,1751024351453,-216.11708023,0.00019178,2]
[368105903,1751024356308,5000.0,0.000191,2]
[368105904,1751024372241,5000.0,0.000191,2]
[368105905,1751024388156,2203.41342116,0.000191,2]
[368105907,1751024411493,8568.679772,0.00018486,2]
[368105908,1751024411516,6030.5306251,0.00018486,2]
[368105915,1751024580359,2638.58657884,0.000191,2]
[368105916,1751024597427,11330.88279606,0.00018,2]
[368105917,1751024597448,15142.98884648,0.00018,2]
[368105918,1751024612035,160.48725533,0.000189,2]
[368105919,1751024612574,150.0,0.000189,2]
[368105922,1751024656429,1513.90798617,0.000191,2]
[368105923,1751024664791,627.6974319,0.00019078,2]
[368105924,1751024671780,5000.0,0.000191,2]
[368105925,1751024687412,5000.0,0.000191,2]
[368105926,1751024695238,439.77602229,0.000191,2]
[368105927,1751024695272,159.71186187,0.00019077,2]
[368105928,1751024695620,159.71186187,0.00019078,2]
[368105929,1751024704928,5000.0,0.000191,2]
[368105930,1751024719287,167.3781358,0.00019041,2]
[368105931,1751024721311,5000.0,0.000191,2]
[368105933,1751024737062,5000.0,0.000191,2]
[368105934,1751024751273,201.66384461,0.00019,2]
[368105935,1751024752914,5000.0,0.000191,2]
[368105936,1751024768420,5000.0,0.000191,2]
[368105939,1751024783936,5000.0,0.000191,2]
[368105940,1751024800024,5000.0,0.000191,2]
[368105943,1751024815183,5000.0,0.000191,2]
[368105944,1751024830613,5000.0,0.000191,2]
[368105945,1751024838088,-1027.31116315,0.00019176,2]
[368105946,1751024839268,167.37813579,0.00019045,2]
[368105947,1751024842838,377.65994664,0.00019,2]
[368105948,1751024846474,5000.0,0.000191,2]
[368105949,1751024849098,-172.68883685,0.00019176,2]
[368105950,1751024849118,-300.0,0.00019177,2]
[368105951,1751024849138,-470.0,0.00019177,2]
[368105952,1751024849159,-300.0,0.00019177,2]
[368105953,1751024849178,-214.33983356,0.00019178,2]
[368105954,1751024862126,5000.0,0.000191,2]
[368105955,1751024877626,5000.0,0.000191,2]
[368105956,1751024882499,305.2573708,0.00018219,2]
[368105957,1751024882905,152.6286854,0.00018479,2]
[368105958,1751024893519,5000.0,0.000191,2]
[368105959,1751024910038,5000.0,0.000191,2]
[368105960,1751024913259,150.0,0.000189,2]